bitfinex/quotes_BTCUSD_20241001
["timestamp","ask_amount","ask_price","bid_price","bid_amount"]
[1727742718498,0.0817,63511.0,63509.0,0.03161]
[1727742718711,0.005,63510.0,63509.0,0.03161]
[1727742719164,0.005,63510.0,63509.0,0.1880678]
[1727742719809,0.005,63510.0,63509.0,0.2880678]
[1727742720052,0.005,63507.0,63506.0,0.03161]
[1727742720287,0.162477,63501.0,63497.0,0.0490312]
[1727742720517,0.239877,63501.0,63497.0,0.0490312]
[1727742720737,0.0824,63501.0,63495.0,0.03161]
[1727742720924,0.0824,63501.0,63500.0,0.1580998]
[1727742721404,0.239877,63501.0,63500.0,0.1897098]
[1727742721625,0.162507,63489.0,63488.0,0.31755568]
[1727742721852,0.005,63489.0,63488.0,0.47401348]
[1727742722068,0.005,63489.0,63488.0,0.42449218]
[1727742722285,0.005,63489.0,63488.0,0.1880278]
[1727742722504,0.314991,63494.0,63488.0,0.1880278]
[1727742722748,0.31498,63497.0,63488.0,0.1880278]
[1727742722971,0.23646438,63500.0,63481.0,0.315051]
[1727742722972,0.23646438,63500.0,63493.0,0.03157]
[1727742723188,0.157496,63494.0,63493.0,0.03157]
[1727742723398,0.157488,63497.0,63493.0,0.03157]
[1727742723615,0.157495,63494.0,63493.0,0.03157]
[1727742723837,0.47249,63494.0,63493.0,0.03157]
[1727742724292,0.629985,63494.0,63493.0,0.03157]
[1727742724516,0.49717247,63494.0,63493.0,0.03157]
[1727742724731,0.49717247,63494.0,63493.0,0.03657]
[1727742724949,0.49717247,63494.0,63493.0,0.3505248]
[1727742726058,0.49717247,63494.0,63493.0,0.3455248]
[1727742726278,0.49717247,63494.0,63493.0,0.4505248]
[1727742726498,0.49717247,63494.0,63493.0,0.2880278]
[1727742726719,0.49717247,63494.0,63493.0,0.4455248]
[1727742726932,0.49717247,63494.0,63493.0,0.4585248]
[1727742727358,0.49717247,63494.0,63493.0,0.4545248]
[1727742727783,0.49717247,63494.0,63493.0,0.4505248]
[1727742728002,0.47249,63494.0,63493.0,0.4505248]
[1727742728943,0.47249,63494.0,63493.0,0.4455248]
[1727742729159,0.629985,63494.0,63493.0,0.03857]
[1727742729375,0.47249,63494.0,63493.0,0.04457]
[1727742729590,0.47249,63494.0,63493.0,0.03757]
[1727742730020,0.47249,63494.0,63493.0,0.03157]
[1727742730234,0.47249,63494.0,63493.0,0.03957]
[1727742730446,0.47249,63494.0,63493.0,0.03457]
[1727742730870,0.47249,63494.0,63493.0,0.03857]
[1727742731514,0.47249,63494.0,63493.0,0.196067]
[1727742731728,0.47249,63494.0,63493.0,0.03857]
[1727742732180,0.47249,63494.0,63493.0,0.03757]
[1727742732424,0.47249,63494.0,63493.0,0.195067]
[1727742732644,0.47249,63494.0,63493.0,0.193067]
[1727742732870,0.47249,63494.0,63493.0,0.189067]
[1727742733107,0.47249,63494.0,63493.0,0.4585248]
[1727742733351,0.47249,63494.0,63493.0,0.4515248]
[1727742733571,0.47249,63494.0,63493.0,0.4455248]
[1727742733806,0.47249,63494.0,63493.0,0.4585248]
[1727742734023,0.47249,63494.0,63493.0,0.4515248]
[1727742735123,0.47249,63494.0,63493.0,0.4455248]
[1727742735365,0.47249,63494.0,63493.0,0.4545248]
[1727742735620,0.49817004,63494.0,63493.0,0.4535248]
[1727742736085,0.49717004,63494.0,63493.0,0.4585248]
[1727742736393,0.49817004,63494.0,63493.0,0.4705248]
[1727742737395,0.47349,63494.0,63493.0,0.4705248]
[1727742737846,0.47349,63494.0,63493.0,0.71806045]
[1727742738286,0.47349,63494.0,63493.0,0.4705248]
[1727742739649,0.47349,63494.0,63493.0,0.4721688]
[1727742740191,0.474312,63494.0,63493.0,0.4721688]
[1727742743569,0.474312,63494.0,63493.0,1.75776786]
[1727742743857,0.47157073,63494.0,63493.0,2.13076786]
[1727742744527,0.47057073,63494.0,63493.0,2.11876786]
[1727742744970,0.47157073,63494.0,63493.0,2.11876786]
[1727742745421,0.47157073,63494.0,63493.0,2.13276786]
[1727742745636,0.47057073,63494.0,63493.0,2.11776786]
[1727742745875,0.47057073,63494.0,63493.0,1.74476786]
[1727742746091,0.47157073,63494.0,63493.0,1.75376786]
[1727742749878,0.47157073,63494.0,63493.0,1.75576786]
[1727742750101,0.47157073,63494.0,63493.0,1.75376786]
[1727742752119,0.47157073,63494.0,63493.0,1.74876786]
[1727742753008,0.47157073,63494.0,63493.0,1.76605926]
[1727742753237,0.47157073,63494.0,63493.0,1.63476786]
[1727742753464,0.47057073,63494.0,63493.0,0.3611688]
[1727742753691,0.47057073,63494.0,63493.0,0.047214]
[1727742754375,0.47057073,63494.0,63493.0,0.033214]
[1727742754592,0.47057073,63494.0,63493.0,0.044214]
[1727742754843,0.62806573,63494.0,63493.0,0.044214]
[1727742755304,0.62806573,63494.0,63493.0,0.015644]
[1727742755306,0.70906573,63494.0,63493.0,0.015644]
[1727742755526,0.70906573,63494.0,63488.0,0.001642]
[1727742755527,0.73374774,63494.0,63488.0,0.001642]
[1727742755754,0.238507,63489.0,63488.0,0.001642]
[1727742755989,0.70825573,63489.0,63488.0,0.001642]
[1727742756434,0.71025573,63489.0,63488.0,0.001642]
[1727742756914,0.326629,63480.0,63479.0,0.0497242]
[1727742757133,0.326629,63480.0,63472.0,0.23646438]
[1727742757134,0.157547,63473.0,63472.0,0.23646438]
[1727742757373,0.62729573,63473.0,63472.0,0.23646438]
[1727742757589,0.65198554,63473.0,63472.0,0.23646438]
[1727742757813,0.65198554,63473.0,63471.0,0.033212]
[1727742757814,0.157549,63472.0,63471.0,0.033212]
[1727742758059,0.70749773,63472.0,63471.0,0.033212]
[1727742758336,0.70749773,63472.0,63471.0,0.001642]
[1727742759281,0.157577,63461.0,63460.0,0.03157]
[1727742759495,0.70712573,63461.0,63460.0,0.03157]
[1727742759925,0.157582,63459.0,63458.0,0.001644]
[1727742760144,0.62733073,63459.0,63458.0,0.001644]
[1727742760632,0.46974873,63459.0,63458.0,0.001644]
[1727742760854,0.46974873,63459.0,63458.0,0.4472558]
[1727742761078,0.4944419,63459.0,63458.0,0.4472558]
[1727742761270,0.4944419,63459.0,63458.0,0.2896718]
[1727742761527,0.4944419,63459.0,63458.0,0.2926718]
[1727742761741,0.46974873,63459.0,63458.0,0.2926718]
[1727742762198,0.62733073,63459.0,63458.0,0.033214]
[1727742762437,0.62733073,63459.0,63458.0,0.044214]
[1727742762438,0.62833073,63459.0,63458.0,0.044214]
[1727742762651,0.71103073,63459.0,63458.0,0.058214]
[1727742762867,0.71003073,63459.0,63458.0,0.044214]
[1727742763720,0.71003073,63459.0,63458.0,0.042214]
[1727742764147,0.71003073,63459.0,63458.0,0.048214]
[1727742764372,0.55244873,63459.0,63458.0,0.048214]
[1727742764593,0.55244873,63459.0,63458.0,0.042214]
[1727742764775,0.57714354,63459.0,63458.0,0.042214]
[1727742765002,0.49544354,63459.0,63458.0,0.042214]
[1727742765224,0.49544354,63459.0,63458.0,0.199798]
[1727742765435,0.49444354,63459.0,63458.0,0.190798]
[1727742765655,0.49444354,63459.0,63458.0,0.033214]
[1727742765866,0.49444354,63459.0,63458.0,0.195798]
[1727742766077,0.49444354,63459.0,63458.0,0.194798]
[1727742766317,0.49444354,63459.0,63458.0,0.294798]
[1727742766533,0.49544354,63459.0,63458.0,0.300798]
[1727742766721,0.49444354,63459.0,63458.0,0.294798]
[1727742767233,0.49544354,63459.0,63458.0,0.140214]
[1727742767454,0.49544354,63459.0,63458.0,0.045214]
[1727742767905,0.49544354,63459.0,63458.0,0.140214]
[1727742768144,0.47074873,63459.0,63458.0,0.140214]
[1727742768365,0.47174873,63459.0,63458.0,0.149214]
[1727742768583,0.47074873,63459.0,63458.0,0.142214]
[1727742768822,0.46974873,63459.0,63458.0,0.033214]
[1727742769048,0.47074873,63459.0,63458.0,0.4622558]
[1727742769269,0.47074873,63459.0,63458.0,0.4532558]
[1727742769270,0.46974873,63459.0,63458.0,0.4532558]
[1727742769697,0.47074873,63459.0,63458.0,0.4622558]
[1727742770389,0.47074873,63459.0,63458.0,0.4562558]
[1727742770608,0.46974873,63459.0,63458.0,0.4472558]
[1727742770827,0.46974873,63459.0,63458.0,0.4542558]
[1727742771067,0.46974873,63459.0,63458.0,0.4472558]
[1727742771489,0.46974873,63459.0,63458.0,0.4562558]
[1727742771702,0.46974873,63459.0,63458.0,0.47088357]
[1727742772147,0.47074873,63459.0,63458.0,0.4662558]
[1727742772358,0.46974873,63459.0,63458.0,0.4562558]
[1727742772567,0.47074873,63459.0,63458.0,0.4682558]
[1727742772990,0.46974873,63459.0,63458.0,0.4562558]
[1727742773205,0.47074873,63459.0,63458.0,0.4682558]
[1727742773441,0.47074873,63459.0,63458.0,0.4592558]
[1727742773654,0.46974873,63459.0,63458.0,0.4572558]
[1727742774083,0.47074873,63459.0,63458.0,0.4592558]
[1727742774505,0.47074873,63459.0,63458.0,0.4732558]
[1727742775362,0.46974873,63459.0,63458.0,0.4612558]
[1727742775579,0.46974873,63459.0,63458.0,1.98220192]
[1727742775792,0.47074873,63459.0,63458.0,1.99620192]
[1727742776037,0.46974873,63459.0,63458.0,1.98220192]
[1727742776251,0.46974873,63459.0,63458.0,1.99620192]
[1727742776252,0.47074873,63459.0,63458.0,1.99620192]
[1727742776475,0.47074873,63459.0,63458.0,1.98420192]
[1727742776684,0.47074873,63459.0,63458.0,1.99820192]
[1727742777528,0.47074873,63459.0,63458.0,1.99620192]
[1727742777750,0.47074873,63459.0,63458.0,1.91392298]
[1727742778421,0.47074873,63459.0,63458.0,1.74885486]
[1727742780984,0.47074873,63459.0,63458.0,0.4752558]
[1727742781448,0.47074873,63459.0,63458.0,0.64032392]
[1727742781683,0.47074873,63459.0,63458.0,0.72478182]
[1727742781909,0.47074873,63459.0,63458.0,0.73992218]
[1727742782331,0.47074873,63459.0,63458.0,0.74192218]
[1727742782996,0.47074873,63459.0,63458.0,0.77492218]
[1727742783229,0.40063491,63459.0,63458.0,2.80409749]
[1727742783434,0.40063491,63459.0,63458.0,2.32380522]
[1727742783873,0.39963491,63459.0,63458.0,2.30980522]
[1727742784089,0.39963491,63459.0,63458.0,2.29580522]
[1727742784311,0.39963491,63459.0,63458.0,2.30980522]
[1727742784517,0.39963491,63459.0,63458.0,2.30998719]
[1727742784731,0.39963491,63459.0,63458.0,2.29598719]
[1727742785152,0.39963491,63459.0,63458.0,2.29502719]
[1727742785358,0.39963491,63459.0,63458.0,2.25912719]
[1727742785587,0.39963491,63459.0,63458.0,2.14217719]
[1727742785796,0.39963491,63459.0,63458.0,2.15617719]
[1727742786457,0.39963491,63459.0,63458.0,2.27312719]
[1727742788207,0.39963491,63459.0,63458.0,2.15617719]
[1727742788416,0.39963491,63459.0,63458.0,2.88207919]
[1727742788628,0.39963491,63459.0,63458.0,2.75797319]
[1727742789067,0.39963491,63459.0,63458.0,2.15117719]
[1727742789497,0.39963491,63459.0,63458.0,1.76817719]
[1727742789709,0.39963491,63459.0,63458.0,0.39257813]
[1727742789930,0.39963491,63459.0,63458.0,0.2176718]
[1727742790137,0.63891691,63459.0,63458.0,0.061214]
[1727742790555,0.63891691,63459.0,63458.0,0.047214]
[1727742791000,0.66361052,63459.0,63458.0,0.061214]
[1727742791411,0.63891691,63459.0,63458.0,0.061214]
[1727742791820,0.63891691,63459.0,63458.0,0.047214]
[1727742792086,0.63891691,63459.0,63458.0,0.052214]
[1727742792281,0.63891691,63459.0,63458.0,0.047214]
[1727742792494,0.63891691,63459.0,63458.0,0.001644]
[1727742792700,0.63891691,63459.0,63458.0,0.006644]
[1727742792949,0.63891691,63459.0,63458.0,0.042214]
[1727742793424,0.63891691,63459.0,63458.0,0.033214]
[1727742793629,0.63891691,63459.0,63458.0,0.037214]
[1727742794669,0.66361165,63459.0,63458.0,0.037214]
[1727742795233,0.66361165,63459.0,63458.0,0.042214]
[1727742798077,0.63891691,63459.0,63458.0,0.042214]
[1727742798936,0.63891691,63459.0,63458.0,0.038214]
[1727742799180,0.48133491,63459.0,63458.0,0.038214]
[1727742799393,0.48133491,63459.0,63458.0,0.043214]
[1727742799826,0.63891691,63459.0,63458.0,0.038214]
[1727742800036,0.63891691,63459.0,63458.0,0.033214]
[1727742800241,0.63912691,63459.0,63458.0,0.037214]
[1727742800450,0.63912691,63459.0,63458.0,0.043214]
[1727742801501,0.63912691,63459.0,63458.0,0.039214]
[1727742801718,0.64112691,63459.0,63458.0,0.033214]
[1727742801946,0.66412691,63459.0,63458.0,0.010644]
[1727742802150,0.157591,63455.0,63454.0,0.03157]
[1727742802380,1.17270973,63455.0,63454.0,0.03157]
[1727742802605,0.238409,63448.0,63436.0,0.001642]
[1727742802816,0.88556993,63448.0,63436.0,0.001642]
[1727742803293,0.157625,63442.0,63436.0,0.001642]
[1727742803508,0.31524,63444.0,63436.0,0.001642]
[1727742803509,0.16317053,63441.0,63436.0,0.001642]
[1727742803713,0.16317053,63441.0,63437.0,0.1]
[1727742803714,0.32079853,63441.0,63437.0,0.1]
[1727742804146,0.16317053,63441.0,63438.0,0.03157]
[1727742804388,0.16317053,63441.0,63440.0,0.157629]
[1727742804624,0.16317053,63441.0,63440.0,0.4456568]
[1727742805686,0.16317053,63441.0,63440.0,0.4496568]
[1727742805926,0.16417053,63441.0,63440.0,0.4596568]
[1727742806343,0.16517053,63441.0,63440.0,0.4736568]
[1727742806754,0.16517053,63441.0,63440.0,0.48820018]
[1727742807602,0.16517053,63441.0,63440.0,1.76179924]
[1727742808922,0.16517053,63441.0,63440.0,1.74725586]
[1727742809151,0.32279653,63441.0,63440.0,1.43316906]
[1727742809370,0.39869653,63441.0,63440.0,1.43316906]
[1727742810223,0.39869653,63441.0,63440.0,1.58962686]
[1727742810224,0.16517053,63441.0,63440.0,1.58962686]
[1727742810439,0.16517053,63441.0,63440.0,1.74725586]
[1727742810898,0.16417053,63441.0,63440.0,1.73325586]
[1727742811102,0.16317053,63441.0,63440.0,1.71925586]
[1727742811310,0.16517053,63441.0,63440.0,1.73525586]
[1727742811774,0.16517053,63441.0,63440.0,1.71925586]
[1727742811775,0.16417053,63441.0,63440.0,1.71925586]
[1727742812055,0.16627743,63441.0,63440.0,1.73525586]
[1727742812475,0.16527743,63441.0,63440.0,1.72625586]
[1727742812710,0.16527743,63441.0,63440.0,1.72090186]
[1727742812711,0.16427743,63441.0,63440.0,1.72090186]
[1727742812969,0.16527743,63441.0,63440.0,1.72890186]
[1727742813429,0.16527743,63441.0,63440.0,0.4653028]
[1727742813430,0.16627743,63441.0,63440.0,0.4653028]
[1727742814299,0.16527743,63441.0,63440.0,0.4573028]
[1727742814523,0.16427743,63441.0,63440.0,0.4563028]
[1727742814947,0.16427743,63441.0,63440.0,0.4583028]
[1727742814948,0.16527743,63441.0,63440.0,0.4583028]
[1727742815182,0.16427743,63441.0,63440.0,0.4473028]
[1727742815402,0.16527743,63441.0,63440.0,0.4753028]
[1727742815619,0.16627743,63441.0,63440.0,0.4753028]
[1727742816073,0.16627743,63441.0,63440.0,0.49002011]
[1727742816971,0.16627743,63441.0,63440.0,1.85181917]
[1727742817193,0.15264011,63441.0,63440.0,1.86724043]
[1727742817415,0.15264011,63441.0,63440.0,1.89551886]
[1727742817636,0.15264011,63441.0,63440.0,1.86024043]
[1727742817850,0.15264011,63441.0,63440.0,1.86224043]
[1727742818066,0.15164011,63441.0,63440.0,1.84624043]
[1727742818280,0.14964011,63441.0,63440.0,1.83224043]
[1727742818571,0.15064011,63441.0,63440.0,1.87451886]
[1727742818787,0.15064011,63441.0,63440.0,1.77704043]
[1727742819016,0.14964011,63441.0,63440.0,1.74904043]
[1727742819239,0.15064011,63441.0,63440.0,1.7778976]
[1727742819449,0.15064011,63441.0,63440.0,1.79136963]
[1727742819870,0.15064011,63441.0,63440.0,1.80536963]
[1727742820511,0.14964011,63441.0,63440.0,1.79136963]
[1727742820966,0.14964011,63441.0,63440.0,1.80536963]
[1727742821177,0.14964011,63441.0,63440.0,1.79136963]
[1727742821387,0.14964011,63441.0,63440.0,1.80555809]
[1727742822229,0.14964011,63441.0,63440.0,1.80555737]
[1727742822452,0.14964011,63441.0,63440.0,1.79208606]
[1727742822660,0.14964011,63441.0,63440.0,1.80555708]
[1727742823367,0.14964011,63441.0,63440.0,1.74890186]
[1727742823600,0.14964011,63441.0,63440.0,0.4753028]
[1727742824031,0.14964011,63441.0,63440.0,0.3036738]
[1727742824245,0.14964011,63441.0,63440.0,0.4613028]
[1727742824462,0.1743402,63441.0,63440.0,0.4613028]
[1727742824675,0.1743402,63441.0,63440.0,0.4753028]
[1727742824919,0.1743402,63441.0,63440.0,0.4613028]
[1727742825133,0.3319662,63441.0,63440.0,0.047216]
[1727742825349,0.4084662,63441.0,63440.0,0.061216]
[1727742825578,0.4084662,63441.0,63440.0,0.047216]
[1727742826004,0.4092892,63441.0,63440.0,0.033216]
[1727742826700,0.4092892,63441.0,63440.0,0.001646]
[1727742826933,0.4092892,63441.0,63440.0,0.047216]
[1727742827358,0.4092892,63441.0,63440.0,0.036216]
[1727742827568,0.4092892,63441.0,63440.0,0.033216]
[1727742827788,0.4102892,63441.0,63440.0,0.033216]
[1727742827991,0.38558911,63441.0,63440.0,0.002646]
[1727742828216,0.38458911,63441.0,63440.0,0.002646]
[1727742828652,0.22696311,63441.0,63440.0,0.192845]
[1727742828874,0.22696311,63441.0,63440.0,0.035216]
[1727742830187,0.38458911,63441.0,63440.0,0.035216]
[1727742832649,0.38458911,63441.0,63440.0,0.003646]
[1727742833491,0.38458911,63441.0,63440.0,0.002646]
[1727742833703,0.38658911,63441.0,63440.0,0.001646]
[1727742834223,0.38458911,63441.0,63440.0,0.001646]
[1727742834448,0.38658911,63441.0,63440.0,0.001646]
[1727742834873,0.38458911,63441.0,63440.0,0.001646]
[1727742835494,0.40929267,63441.0,63440.0,0.001646]
[1727742836322,0.41129267,63441.0,63440.0,0.001646]
[1727742836749,0.40929267,63441.0,63440.0,0.001646]
[1727742837182,0.59075047,63441.0,63440.0,0.001646]
[1727742837428,0.7396959,63441.0,63440.0,0.001646]
[1727742837650,0.7376959,63441.0,63440.0,0.001646]
[1727742837868,0.7396959,63441.0,63440.0,0.001646]
[1727742838083,0.67174691,63441.0,63440.0,0.001646]
[1727742838567,0.67174691,63441.0,63436.0,0.001642]
[1727742838568,0.50601757,63437.0,63436.0,0.001642]
[1727742838786,0.90639072,63437.0,63436.0,0.001642]
[1727742839019,0.169641,63435.0,63434.0,0.001644]
[1727742839244,0.169641,63435.0,63429.0,0.001644]
[1727742839245,0.182654,63430.0,63429.0,0.001644]
[1727742839455,0.182654,63430.0,63424.0,0.001642]
[1727742839456,0.34784757,63425.0,63424.0,0.001642]
[1727742839667,0.83943858,63425.0,63424.0,0.001642]
[1727742839899,0.9101952,63425.0,63424.0,0.001642]
[1727742840353,0.9101952,63425.0,63407.0,0.001642]
[1727742840354,0.192681,63419.0,63407.0,0.001642]
[1727742840582,0.91059896,63419.0,63407.0,0.001642]
[1727742840808,0.86342628,63419.0,63407.0,0.001642]
[1727742841029,0.95778078,63419.0,63407.0,0.001642]
[1727742841245,0.86342628,63419.0,63407.0,0.001642]
[1727742841459,0.192688,63416.0,63407.0,0.001642]
[1727742841719,0.98551124,63416.0,63407.0,0.001642]
[1727742842155,0.169693,63414.0,63407.0,0.001642]
[1727742842407,0.52309345,63408.0,63407.0,0.001642]
[1727742842639,0.93608446,63408.0,63407.0,0.001642]
[1727742842866,0.190718,63404.0,63398.0,0.23646438]
[1727742843082,0.64750406,63404.0,63398.0,0.23646438]
[1727742843310,0.83660406,63404.0,63398.0,0.23646438]
[1727742843526,0.87981895,63404.0,63398.0,0.23646438]
[1727742844260,0.87981895,63404.0,63394.0,0.001644]
[1727742844261,0.167728,63400.0,63394.0,0.001644]
[1727742844423,0.67757125,63400.0,63399.0,0.23728738]
[1727742844650,0.56881901,63400.0,63399.0,0.23728738]
[1727742844871,0.56881901,63400.0,63399.0,0.000823]
[1727742845125,0.57381901,63400.0,63399.0,0.000823]
[1727742845584,0.57981901,63400.0,63399.0,0.000823]
[1727742846044,0.40036121,63400.0,63399.0,0.000823]
[1727742846286,0.31826121,63400.0,63399.0,0.000823]
[1727742846762,0.32026121,63400.0,63399.0,0.001823]
[1727742846996,0.32426121,63400.0,63399.0,0.001823]
[1727742847213,0.32226121,63400.0,63399.0,0.000823]
[1727742847437,0.37209756,63400.0,63399.0,0.000823]
[1727742847655,0.46471901,63400.0,63399.0,0.000823]
[1727742847867,0.58971901,63400.0,63399.0,0.000823]
[1727742848088,0.68881901,63400.0,63399.0,0.000823]
[1727742848532,0.68681901,63400.0,63399.0,0.000823]
[1727742848757,0.82307466,63400.0,63399.0,0.000823]
[1727742848969,0.82207466,63400.0,63399.0,0.000823]
[1727742849181,0.82207466,63400.0,63399.0,0.001823]
[1727742849182,0.82507466,63400.0,63399.0,0.001823]
[1727742849658,0.82507466,63400.0,63399.0,0.000823]
[1727742849659,0.82207466,63400.0,63399.0,0.000823]
[1727742849875,0.82507466,63400.0,63399.0,0.001823]
[1727742850118,0.81607466,63400.0,63399.0,0.001823]
[1727742850333,0.83007466,63400.0,63399.0,0.001823]
[1727742850540,0.82707466,63400.0,63399.0,0.000823]
[1727742850767,0.81607466,63400.0,63399.0,0.001823]
[1727742850968,0.83007466,63400.0,63399.0,0.001823]
[1727742851449,0.85479924,63400.0,63399.0,0.001823]
[1727742852541,0.81307466,63400.0,63399.0,0.000823]
[1727742852764,0.68381901,63400.0,63399.0,0.001823]
[1727742853435,0.68081901,63400.0,63399.0,0.000823]
[1727742853646,0.68381901,63400.0,63399.0,0.001823]
[1727742853853,0.68581901,63400.0,63399.0,0.001823]
[1727742854072,0.69981901,63400.0,63399.0,0.001823]
[1727742854292,0.68281901,63400.0,63399.0,0.000823]
[1727742854516,0.76095922,63400.0,63399.0,0.001823]
[1727742854720,0.76095922,63400.0,63399.0,0.002823]
[1727742854721,0.69381901,63400.0,63399.0,0.002823]
[1727742855647,0.7205423,63400.0,63399.0,0.002823]
[1727742856157,0.7105423,63400.0,63399.0,0.001823]
[1727742856362,0.7075423,63400.0,63399.0,0.000823]
[1727742856567,0.86698908,63400.0,63399.0,0.001823]
[1727742856992,0.86398908,63400.0,63399.0,0.000823]
[1727742857229,0.87298908,63400.0,63399.0,0.002823]
[1727742857438,0.87598908,63400.0,63399.0,0.002823]
[1727742857904,0.4460845,63400.0,63399.0,0.001823]
[1727742858093,0.39236121,63400.0,63399.0,0.001823]
[1727742858310,0.31926121,63400.0,63399.0,0.002823]
[1727742858745,0.31026121,63400.0,63399.0,0.001823]
[1727742858972,0.31026121,63400.0,63399.0,0.002823]
[1727742859198,0.31926121,63400.0,63399.0,0.002823]
[1727742859411,0.31626121,63400.0,63399.0,0.001823]
[1727742859642,0.31926121,63400.0,63399.0,0.002823]
[1727742860383,0.31926121,63400.0,63399.0,0.001823]
[1727742860384,0.31026121,63400.0,63399.0,0.001823]
[1727742860600,0.31026121,63400.0,63399.0,0.002823]
[1727742860601,0.15853321,63400.0,63399.0,0.002823]
[1727742860815,0.15853321,63400.0,63399.0,0.033393]
[1727742860816,0.15553321,63400.0,63399.0,0.033393]
[1727742861038,0.15853321,63400.0,63399.0,0.034393]
[1727742861247,0.15253321,63400.0,63399.0,0.033393]
[1727742861458,0.31026121,63400.0,63399.0,0.033393]
[1727742861663,0.31026121,63400.0,63399.0,0.036393]
[1727742861875,0.31026121,63400.0,63399.0,0.033393]
[1727742862083,0.15253321,63400.0,63399.0,0.001823]
[1727742862286,0.15053321,63400.0,63399.0,0.039393]
[1727742862708,0.15053321,63400.0,63399.0,0.044393]
[1727742864456,0.30826121,63400.0,63399.0,0.044393]
[1727742865577,0.3329808,63400.0,63399.0,0.044393]
[1727742867364,0.3329808,63400.0,63399.0,0.012823]
[1727742868241,0.30826121,63400.0,63399.0,0.012823]
[1727742868454,0.30726121,63400.0,63399.0,0.000823]
[1727742868872,0.31526121,63400.0,63399.0,0.000823]
[1727742869300,0.31226121,63400.0,63399.0,0.000823]
[1727742869512,0.31526121,63400.0,63399.0,0.001823]
[1727742871573,0.31526121,63400.0,63399.0,0.000823]
[1727742871574,0.33198177,63400.0,63399.0,0.000823]
[1727742871991,0.33498177,63400.0,63399.0,0.002823]
[1727742872426,0.17425377,63400.0,63399.0,0.001823]
[1727742872640,0.33398177,63400.0,63399.0,0.001823]
[1727742874148,0.15153321,63400.0,63399.0,0.001823]
[1727742874617,0.15153321,63400.0,63399.0,0.159554]
[1727742875097,0.15153321,63400.0,63399.0,0.3160118]
[1727742875386,0.15153321,63400.0,63399.0,0.6306266]
[1727742875628,0.17625015,63400.0,63399.0,0.7304266]
[1727742875867,0.17425015,63400.0,63399.0,0.8113266]
[1727742876084,0.17425015,63400.0,63399.0,0.79376907]
[1727742876290,0.17425015,63400.0,63399.0,0.81631535]
[1727742876745,0.17425015,63400.0,63399.0,0.81531535]
[1727742877182,0.17525015,63400.0,63399.0,0.82231535]
[1727742877401,0.17425015,63400.0,63399.0,0.81531535]
[1727742877605,0.17425015,63400.0,63399.0,0.64482808]
[1727742877811,0.17525015,63400.0,63399.0,0.65182808]
[1727742878030,0.17525015,63400.0,63399.0,0.66582808]
[1727742878253,0.15053321,63400.0,63399.0,0.66582808]
[1727742880471,0.15053321,63400.0,63399.0,0.4905508]
[1727742880676,0.15053321,63400.0,63399.0,0.3098508]
[1727742880883,0.30826121,63400.0,63399.0,0.053393]
[1727742881321,0.33297979,63400.0,63399.0,0.039393]
[1727742881535,0.33197979,63400.0,63399.0,0.046393]
[1727742881744,0.33197979,63400.0,63399.0,0.053393]
[1727742881983,0.33297979,63400.0,63399.0,0.039393]
[1727742882418,0.33297979,63400.0,63399.0,0.041393]
[1727742882638,0.30826121,63400.0,63399.0,0.041393]
[1727742882872,0.30826121,63400.0,63399.0,0.039393]
[1727742883105,0.30726121,63400.0,63399.0,0.000823]
[1727742883951,0.30826121,63400.0,63399.0,0.005823]
[1727742884164,0.30926121,63400.0,63399.0,0.000823]
[1727742884603,0.30726121,63400.0,63399.0,0.001823]
[1727742885037,0.30926121,63400.0,63399.0,0.001823]
[1727742885718,0.33398184,63400.0,63399.0,0.001823]
[1727742888238,0.30926121,63400.0,63399.0,0.001823]
[1727742888445,0.68926465,63400.0,63399.0,0.001823]
[1727742889084,0.87572245,63400.0,63399.0,0.001823]
[1727742889300,0.87572245,63400.0,63394.0,0.001644]
[1727742889301,0.005,63396.0,63394.0,0.001644]
[1727742889554,0.93197581,63395.0,63394.0,0.001644]
[1727742889779,1.0791689,63395.0,63394.0,0.001644]
[1727742890405,1.0811689,63395.0,63394.0,0.001644]
[1727742890608,0.92272212,63395.0,63394.0,0.001644]
[1727742890863,0.92272212,63395.0,63394.0,0.002644]
[1727742891077,0.92272212,63395.0,63394.0,0.001644]
[1727742891282,0.93672212,63395.0,63394.0,0.002644]
[1727742891490,0.96144739,63395.0,63394.0,0.002644]
[1727742891868,0.96744739,63395.0,63394.0,0.003644]
[1727742892075,1.08546367,63395.0,63394.0,0.003644]
[1727742892498,0.94272212,63395.0,63394.0,0.003644]
[1727742892713,1.40734537,63395.0,63394.0,0.003644]
[1727742892921,1.04125524,63395.0,63394.0,0.003644]
[1727742893364,1.02125524,63395.0,63394.0,0.001644]
[1727742893575,1.03925524,63395.0,63394.0,0.003644]
[1727742894022,0.197756,63389.0,63388.0,0.00195]
[1727742894234,0.96086898,63389.0,63388.0,0.00195]
[1727742894440,0.86982468,63389.0,63388.0,0.00195]
[1727742894664,0.88955334,63389.0,63388.0,0.00195]
[1727742894871,0.8659432,63389.0,63388.0,0.00195]
[1727742895078,0.8639432,63389.0,63388.0,0.00195]
[1727742895290,0.85534654,63389.0,63388.0,0.00395]
[1727742895495,0.78456578,63389.0,63388.0,0.00395]
[1727742895711,0.84534017,63389.0,63388.0,0.00395]
[1727742895980,0.78456578,63389.0,63388.0,0.00395]
[1727742896398,0.77856578,63389.0,63388.0,0.00295]
[1727742896811,0.78456578,63389.0,63388.0,0.00295]
[1727742897019,0.77556578,63389.0,63388.0,0.00295]
[1727742897254,0.64028741,63389.0,63388.0,0.00195]
[1727742897473,0.33201787,63389.0,63388.0,0.003772]
[1727742897687,0.33901787,63389.0,63388.0,0.003772]
[1727742897913,0.34801787,63389.0,63388.0,0.003772]
[1727742898131,0.30728921,63389.0,63388.0,0.002772]
[1727742898585,0.32428921,63389.0,63388.0,0.003772]
[1727742899221,0.32428921,63389.0,63388.0,0.035342]
[1727742899441,0.32428921,63389.0,63388.0,0.003772]
[1727742899651,0.16653321,63389.0,63388.0,0.003772]
[1727742899875,0.32428921,63389.0,63388.0,0.003772]
[1727742900094,0.33328921,63389.0,63388.0,0.003772]
[1727742900321,0.30728921,63389.0,63388.0,0.002772]
[1727742900535,0.31328921,63389.0,63388.0,0.003772]
[1727742900751,0.31628921,63389.0,63388.0,0.003772]
[1727742900966,0.31328921,63389.0,63388.0,0.003772]
[1727742901223,0.30728921,63389.0,63388.0,0.002772]
[1727742901438,0.4728067,63389.0,63388.0,0.002772]
[1727742901874,0.14953321,63389.0,63388.0,0.002772]